fUSD/lending_fUSD_20260615
["ID","MTS","AMOUNT","RATE_DAILY","PERIOD"]
[425118243,1781530247000,-893.33,0.00028194,7]
[425118188,1781530247000,-150.0,0.00027884,7]
[425118219,1781530247000,-1986.94,0.00028033,30]
[425118217,1781530247000,-412.58,0.00028007,2]
[425118206,1781530247000,-202.8,0.00027978,9]
[425118218,1781530247000,-893.33,0.00028033,30]
[425118213,1781530247000,-369.825974,0.00028,7]
[425118190,1781530247000,-412.58,0.00027885,30]
[425118192,1781530247000,-588.829384,0.000279,14]
[425118193,1781530247000,-442.03,0.00027916,2]
[425118198,1781530247000,-150.0,0.00027947,7]
[425118196,1781530247000,-442.03,0.00027946,7]
[425118194,1781530247000,-412.58,0.00027916,2]
[425118197,1781530247000,-412.58,0.00027946,7]
[425118199,1781530247000,-404.46092719,0.00027962,2]
[425118200,1781530247000,-290.3986294,0.00027962,2]
[425118201,1781530247000,-150.0,0.00027973,2]
[425118203,1781530247000,-412.58,0.00027977,30]
[425118204,1781530247000,-411.7,0.00027978,9]
[425118191,1781530247000,-588.829384,0.000279,7]
[425118205,1781530247000,-163.04,0.00027978,9]
[425118216,1781530247000,-442.03,0.00028007,2]
[425118222,1781530247000,-2891.04,0.00028033,30]
[425118215,1781530247000,-1893.71965993,0.00028006,2]
[425118207,1781530247000,-150.0,0.00028,7]
[425118214,1781530247000,-30974.509999,0.00028,2]
[425118224,1781530247000,-442.03,0.00028038,7]
[425118209,1781530247000,-300.0,0.00028,7]
[425118210,1781530247000,-369.825974,0.00028,7]
[425118212,1781530247000,-369.825974,0.00028,7]
[425118202,1781530247000,-442.03,0.00027977,30]
[425118211,1781530247000,-369.825974,0.00028,7]
[425118208,1781530247000,-216.09656886,0.00028,10]
[425118293,1781530248000,-150.0,0.00028493,2]
[425118284,1781530248000,-150.0,0.00028493,2]
[425118281,1781530248000,-150.0,0.00028493,2]
[425118282,1781530248000,-150.0,0.00028493,2]
[425118275,1781530248000,-327.27699924,0.0002849,2]
[425118278,1781530248000,-150.0,0.00028493,2]
[425118277,1781530248000,-502.28735956,0.00028493,2]
[425118279,1781530248000,-150.0,0.00028493,2]
[425118276,1781530248000,-500.0,0.00028493,2]
[425118294,1781530248000,-150.0,0.00028493,2]
[425118280,1781530248000,-150.0,0.00028493,2]
[425118286,1781530248000,-150.0,0.00028493,2]
[425118291,1781530248000,-150.0,0.00028493,2]
[425118287,1781530248000,-150.0,0.00028493,2]
[425118289,1781530248000,-150.0,0.00028493,2]
[425118290,1781530248000,-150.0,0.00028493,2]
[425118292,1781530248000,-150.0,0.00028493,2]
[425118288,1781530248000,-245.2777844,0.00028493,2]
[425118296,1781530248000,-150.0,0.00028493,2]
[425118299,1781530248000,-150.0,0.00028493,2]
[425118297,1781530248000,-536.0,0.00028493,2]
[425118298,1781530248000,-536.0,0.00028493,2]
[425118305,1781530248000,-536.0,0.00028493,2]
[425118302,1781530248000,-536.0,0.00028493,2]
[425118283,1781530248000,-150.0,0.00028493,2]
[425118285,1781530248000,-150.0,0.00028493,2]
[425118273,1781530248000,-228.28786179,0.0002849,7]
[425118258,1781530248000,-150.0,0.00028238,30]
[425118268,1781530248000,-208.51009773,0.00028468,7]
[425118246,1781530248000,-1977.63,0.00028194,7]
[425118248,1781530248000,-2972.87,0.00028194,7]
[425118247,1781530248000,-2891.04,0.00028194,7]
[425118253,1781530248000,-585.829384,0.000282,14]
[425118257,1781530248000,-9956.42,0.00028235,7]
[425118254,1781530248000,-591.829384,0.000282,14]
[425118251,1781530248000,-585.829384,0.000282,7]
[425118252,1781530248000,-591.829384,0.000282,7]
[425118259,1781530248000,-775.4,0.00028267,2]
[425118255,1781530248000,-282.45,0.00028219,30]
[425118249,1781530248000,-1229.87,0.000282,7]
[425118250,1781530248000,-300.0,0.000282,20]
[425118274,1781530248000,-428.82961143,0.0002849,5]
[425118260,1781530248000,-2004.2953,0.0002831,2]
[425118300,1781530248000,-536.0,0.00028493,2]
[425118262,1781530248000,-1893.71965993,0.00028311,2]
[425118272,1781530248000,-303.03114095,0.00028468,7]
[425118263,1781530248000,-150.0,0.00028335,30]
[425118261,1781530248000,-9803.8659,0.0002831,2]
[425118264,1781530248000,-150.0,0.00028363,30]
[425118265,1781530248000,-300.0,0.000284,20]
[425118266,1781530248000,-150.0,0.00028411,30]
[425118271,1781530248000,-317.61155731,0.00028468,7]
[425118269,1781530248000,-188.04951609,0.00028468,7]
[425118267,1781530248000,-150.0,0.00028433,30]
[425118270,1781530248000,-201.63276584,0.00028468,7]
[425118256,1781530248000,-150.0,0.00028231,30]
[425118303,1781530248000,-536.0,0.00028493,2]
[425118295,1781530248000,-150.0,0.00028493,2]
[425118301,1781530248000,-536.0,0.00028493,2]
[425118340,1781530248000,-536.0,0.00028493,2]
[425118334,1781530248000,-500.0,0.00028493,2]
[425118341,1781530248000,-644.44069364,0.00028493,2]
[425118337,1781530248000,-500.0,0.00028493,2]
[425118333,1781530248000,-536.0,0.00028493,2]
[425118342,1781530248000,-150.0,0.00028493,2]
[425118338,1781530248000,-500.0,0.00028493,2]
[425118343,1781530248000,-536.0,0.00028493,2]
[425118353,1781530248000,-151.0,0.00028507,2]
[425118344,1781530248000,-150.0,0.00028493,2]
[425118354,1781530248000,-404.46092731,0.0002851,2]
[425118345,1781530248000,-536.0,0.00028493,2]
[425118346,1781530248000,-150.0,0.00028493,2]
[425118347,1781530248000,-549.05936694,0.00028493,2]
[425118350,1781530248000,-588.829384,0.000285,14]
[425118349,1781530248000,-588.829384,0.000285,7]
[425118348,1781530248000,-150.0,0.00028493,2]
[425118352,1781530248000,-804.17102365,0.00028507,2]
[425118351,1781530248000,-644.79446245,0.00028507,2]
[425118357,1781530248000,-359.24258149,0.00028546,7]
[425118355,1781530248000,-301.14337869,0.0002851,2]
[425118358,1781530248000,-309.13983372,0.00028546,7]
[425118356,1781530248000,-150.0,0.0002853,30]
[425118360,1781530248000,-150.0,0.00028578,30]
[425118361,1781530248000,-150.0,0.00028578,30]
[425118362,1781530248000,-1229.87,0.000286,7]
[425118304,1781530248000,-536.0,0.00028493,2]
[425118336,1781530248000,-500.0,0.00028493,2]
[425118335,1781530248000,-500.0,0.00028493,2]
[425118359,1781530248000,-173.38599704,0.00028546,7]
[425118332,1781530248000,-500.0,0.00028493,2]
[425118339,1781530248000,-500.0,0.00028493,2]
[425118310,1781530248000,-536.0,0.00028493,2]
[425118307,1781530248000,-150.0,0.00028493,2]
[425118315,1781530248000,-150.0,0.00028493,2]
[425118311,1781530248000,-536.0,0.00028493,2]
[425118314,1781530248000,-536.0,0.00028493,2]
[425118308,1781530248000,-536.0,0.00028493,2]
[425118309,1781530248000,-150.0,0.00028493,2]
[425118318,1781530248000,-536.0,0.00028493,2]
[425118313,1781530248000,-536.0,0.00028493,2]
[425118317,1781530248000,-536.0,0.00028493,2]
[425118316,1781530248000,-536.0,0.00028493,2]
[425118312,1781530248000,-536.0,0.00028493,2]
[425118306,1781530248000,-536.0,0.00028493,2]
[425118328,1781530248000,-500.0,0.00028493,2]
[425118330,1781530248000,-500.0,0.00028493,2]
[425118319,1781530248000,-150.0,0.00028493,2]
[425118322,1781530248000,-500.0,0.00028493,2]
[425118327,1781530248000,-500.0,0.00028493,2]
[425118324,1781530248000,-536.0,0.00028493,2]
[425118323,1781530248000,-500.0,0.00028493,2]
[425118326,1781530248000,-500.0,0.00028493,2]
[425118320,1781530248000,-500.0,0.00028493,2]
[425118325,1781530248000,-500.0,0.00028493,2]
[425118329,1781530248000,-500.0,0.00028493,2]
[425118321,1781530248000,-500.0,0.00028493,2]
[425118331,1781530248000,-150.0,0.00028493,2]
[425118397,1781530249000,-416.58326072,0.00028973,2]
[425118418,1781530249000,-500.0,0.00029,2]
[425118398,1781530249000,-549.88990415,0.00028973,2]
[425118404,1781530249000,-504.37383373,0.00028973,2]
[425118399,1781530249000,-229.1207934,0.00028973,2]
[425118393,1781530249000,-150.0,0.00028918,30]
[425118396,1781530249000,-999.79982572,0.00028973,2]
[425118400,1781530249000,-1624.78918419,0.00028973,2]
[425118392,1781530249000,-6447.04973173,0.00028906,2]
[425118394,1781530249000,-1893.71965993,0.00028919,2]
[425118407,1781530249000,-152.5730847,0.00028973,2]
[425118395,1781530249000,-1297.12,0.00028962,7]
[425118410,1781530249000,-9988.98414702,0.00029,120]
[425118412,1781530249000,-500.0,0.00029,2]
[425118408,1781530249000,-161.967369,0.00028981,14]
[425118413,1781530249000,-216.09656886,0.00029,30]
[425118403,1781530249000,-382.10138919,0.00028973,2]
[425118411,1781530249000,-500.0,0.00029,2]
[425118406,1781530249000,-277.40560855,0.00028973,2]
[425118405,1781530249000,-210.15576405,0.00028973,2]
[425118409,1781530249000,-165.1575878,0.00029,2]
[425118416,1781530249000,-500.0,0.00029,2]
[425118424,1781530249000,-500.0,0.00029,2]
[425118425,1781530249000,-248.82,0.00029,2]
[425118427,1781530249000,-500.0,0.00029,2]
[425118401,1781530249000,-676.99549341,0.00028973,2]
[425118414,1781530249000,-500.0,0.00029,2]
[425118390,1781530249000,-503.09,0.000289,14]
[425118378,1781530249000,-674.0,0.00028784,30]
[425118402,1781530249000,-917.04333405,0.00028973,2]
[425118415,1781530249000,-500.0,0.00029,2]
[425118364,1781530249000,-1893.71965993,0.00028615,2]
[425118363,1781530249000,-264.89760161,0.000286,7]
[425118366,1781530249000,-150.0,0.00028627,30]
[425118365,1781530249000,-1224.0757,0.00028625,2]
[425118368,1781530249000,-150.0,0.00028694,30]
[425118367,1781530249000,-501.0,0.00028629,11]
[425118369,1781530249000,-150.0,0.00028724,30]
[425118371,1781530249000,-150.0,0.00028745,30]
[425118376,1781530249000,-2000.0,0.00028784,30]
[425118377,1781530249000,-2000.0,0.00028784,30]
[425118372,1781530249000,-282.45,0.00028767,30]
[425118370,1781530249000,-175.211839,0.00028734,14]
[425118374,1781530249000,-202.52,0.00028767,53]
[425118373,1781530249000,-1000.0,0.00028767,40]
[425118375,1781530249000,-2000.0,0.00028784,30]
[425118380,1781530249000,-585.829384,0.000288,7]
[425118379,1781530249000,-150.0,0.00028793,30]
[425118381,1781530249000,-591.829384,0.000288,7]
[425118388,1781530249000,-429.0,0.000289,2]
[425118387,1781530249000,-1027.63,0.00028879,7]
[425118383,1781530249000,-591.829384,0.000288,14]
[425118382,1781530249000,-585.829384,0.000288,14]
[425118386,1781530249000,-150.0,0.00028855,2]
[425118385,1781530249000,-169.809975,0.00028837,14]
[425118384,1781530249000,-150.0,0.00028821,30]
[425118389,1781530249000,-500.0,0.000289,14]
[425118391,1781530249000,-200.0,0.000289,2]
[425118426,1781530249000,-500.0,0.00029,2]
[425118464,1781530249000,-403.94,0.000291,2]
[425118420,1781530249000,-500.0,0.00029,2]
[425118456,1781530249000,-153.0,0.00029058,30]
[425118457,1781530249000,-382.0,0.0002907,30]
[425118458,1781530249000,-232.0,0.0002907,30]
[425118461,1781530249000,-150.0,0.00029079,30]
[425118453,1781530249000,-154.0,0.00029058,30]
[425118462,1781530249000,-150.0,0.00029079,30]
[425118460,1781530249000,-481.0,0.00029077,10]
[425118459,1781530249000,-321.0,0.00029076,10]
[425118463,1781530249000,-601.46,0.000291,2]
[425118465,1781530249000,-601.46,0.000291,2]
[425118467,1781530249000,-205.22223056,0.0002913,20]
[425118474,1781530249000,-591.829384,0.000293,7]
[425118469,1781530249000,-1297.12,0.00029185,5]
[425118475,1781530249000,-585.829384,0.000293,14]
[425118466,1781530249000,-1297.12,0.00029125,7]
[425118470,1781530249000,-244.86671062,0.00029186,2]
[425118471,1781530249000,-1446.87,0.000292,30]
[425118468,1781530249000,-1297.12,0.0002918,5]
[425118472,1781530249000,-1893.71965993,0.00029224,2]
[425118478,1781530249000,-356.18807184,0.00029315,2]
[425118476,1781530249000,-591.829384,0.000293,14]
[425118477,1781530249000,-247.66,0.00029315,2]
[425118481,1781530249000,-1124.73,0.00029323,7]
[425118480,1781530249000,-259.23973771,0.00029317,2]
[425118479,1781530249000,-157.49295266,0.00029317,7]
[425118417,1781530249000,-500.0,0.00029,2]
[425118482,1781530249000,-1011.78,0.00029323,7]
[425118454,1781530249000,-155.0,0.00029058,30]
[425118455,1781530249000,-282.0,0.00029058,30]
[425118473,1781530249000,-585.829384,0.000293,7]
[425118450,1781530249000,-235.0,0.00029058,30]
[425118422,1781530249000,-500.0,0.00029,2]
[425118452,1781530249000,-969.0,0.00029058,30]
[425118421,1781530249000,-500.0,0.00029,2]
[425118419,1781530249000,-500.0,0.00029,2]
[425118429,1781530249000,-1229.87,0.00029,7]
[425118428,1781530249000,-1146.0,0.00029,2]
[425118435,1781530249000,-10000.0,0.00029,2]
[425118431,1781530249000,-300.0,0.00029,2]
[425118438,1781530249000,-12529.93684114,0.00029,2]
[425118430,1781530249000,-251.58057184,0.00029,2]
[425118437,1781530249000,-1786.44,0.00029,30]
[425118432,1781530249000,-588.829384,0.00029,7]
[425118436,1781530249000,-500.0,0.00029,2]
[425118434,1781530249000,-500.0,0.00029,2]
[425118423,1781530249000,-500.0,0.00029,2]
[425118439,1781530249000,-348.14337737,0.00029,2]
[425118433,1781530249000,-588.829384,0.00029,14]
[425118449,1781530249000,-519.0,0.00029054,30]
[425118445,1781530249000,-2439.69627,0.00029,2]
[425118448,1781530249000,-156.0,0.00029054,30]
[425118446,1781530249000,-1661.0,0.00029054,30]
[425118447,1781530249000,-155.0,0.00029054,30]
[425118444,1781530249000,-2439.69623,0.00029,2]
[425118442,1781530249000,-2439.69623,0.00029,2]
[425118440,1781530249000,-500.0,0.00029,2]
[425118451,1781530249000,-175.0,0.00029058,30]
[425118441,1781530249000,-2439.69623,0.00029,2]
[425118443,1781530249000,-2439.69623,0.00029,2]
[425118524,1781530250000,-873.73915,0.000295,2]
[425118520,1781530250000,-301.136886,0.00029476,7]
[425118486,1781530250000,-403.26553167,0.00029325,7]
[425118525,1781530250000,-1359.0,0.00029505,2]
[425118519,1781530250000,-284.835329,0.00029476,7]
[425118517,1781530250000,-151.0,0.00029476,7]
[425118516,1781530250000,-151.0,0.00029476,7]
[425118514,1781530250000,-4101.8307405,0.00029476,2]
[425118518,1781530250000,-301.136886,0.00029476,7]
[425118522,1781530250000,-301.136886,0.00029476,7]
[425118526,1781530250000,-501.0,0.00029514,12]
[425118521,1781530250000,-301.136886,0.00029476,7]
[425118523,1781530250000,-1229.87,0.000295,7]
[425118529,1781530250000,-873.73915,0.0002955,2]
[425118533,1781530250000,-878.83319513,0.0002958,14]
[425118532,1781530250000,-1557.08963485,0.0002958,14]
[425118531,1781530250000,-526.97782481,0.0002958,14]
[425118536,1781530250000,-150.0,0.00029581,30]
[425118528,1781530250000,-3731.18,0.00029538,2]
[425118530,1781530250000,-958.14149965,0.0002958,14]
[425118535,1781530250000,-265.84704153,0.0002958,14]
[425118537,1781530250000,-588.829384,0.000296,7]
[425118534,1781530250000,-483.35825732,0.0002958,14]
[425118539,1781530250000,-588.829384,0.000296,14]
[425118547,1781530250000,-163.0,0.0002968,7]
[425118548,1781530250000,-321.0,0.00029761,10]
[425118515,1781530250000,-151.0,0.00029476,7]
[425118527,1781530250000,-1893.71965993,0.00029528,2]
[425118512,1781530250000,-1041.24,0.00029438,5]
[425118484,1781530250000,-417.02019546,0.00029325,7]
[425118511,1781530250000,-192.30565884,0.00029435,7]
[425118538,1781530250000,-585.829384,0.000296,7]
[425118485,1781530250000,-376.09903219,0.00029325,7]
[425118483,1781530250000,-1209.05,0.00029323,7]
[425118487,1781530250000,-152.68505853,0.00029325,7]
[425118488,1781530250000,-476.41733597,0.00029325,7]
[425118500,1781530250000,-150.0,0.00029414,30]
[425118489,1781530250000,-454.54671142,0.00029325,7]
[425118490,1781530250000,-1297.12,0.00029345,2]
[425118499,1781530250000,-231.47223342,0.00029406,7]
[425118494,1781530250000,-150.0,0.00029372,2]
[425118501,1781530250000,-465.95133447,0.00029435,7]
[425118495,1781530250000,-538.86387224,0.00029406,7]
[425118493,1781530250000,-490.91549887,0.00029348,2]
[425118496,1781530250000,-463.70975058,0.00029406,7]
[425118491,1781530250000,-456.57572358,0.00029348,7]
[425118497,1781530250000,-346.77199408,0.00029406,7]
[425118492,1781530250000,-643.24441715,0.00029348,5]
[425118498,1781530250000,-159.08123096,0.00029406,7]
[425118502,1781530250000,-256.27323396,0.00029435,7]
[425118506,1781530250000,-1643.0359735,0.00029435,7]
[425118504,1781530250000,-985.2194116,0.00029435,7]
[425118503,1781530250000,-1791.30802109,0.00029435,7]
[425118505,1781530250000,-2504.88332563,0.00029435,7]
[425118509,1781530250000,-483.14810156,0.00029435,7]
[425118507,1781530250000,-903.66978543,0.00029435,7]
[425118508,1781530250000,-612.60405221,0.00029435,7]
[425118510,1781530250000,-349.64665244,0.00029435,7]
[425118513,1781530250000,-141974.1762621,0.00029476,2]
[425118540,1781530250000,-585.829384,0.000296,14]
[425118572,1781530250000,-732.46,0.000298,7]
[425118541,1781530250000,-873.73915,0.000296,2]
[425118579,1781530250000,-369.825974,0.000298,7]
[425118581,1781530250000,-236.866385,0.000298,7]
[425118586,1781530250000,-209.129083,0.000298,7]
[425118584,1781530250000,-500.0,0.000298,60]
[425118578,1781530250000,-369.825974,0.000298,7]
[425118577,1781530250000,-369.825974,0.000298,7]
[425118585,1781530250000,-151.0,0.000298,7]
[425118583,1781530250000,-236.866385,0.000298,7]
[425118582,1781530250000,-236.866385,0.000298,7]
[425118594,1781530250000,-873.73915,0.000298,2]
[425118595,1781530250000,-160.815948,0.000298,7]
[425118587,1781530250000,-151.0,0.000298,7]
[425118596,1781530250000,-195.042,0.000298,21]
[425118589,1781530250000,-469.301051,0.000298,7]
[425118590,1781530250000,-469.301051,0.000298,7]
[425118588,1781530250000,-469.301051,0.000298,7]
[425118597,1781530250000,-151.0,0.000298,7]
[425118598,1781530250000,-301.136886,0.000298,7]
[425118593,1781530250000,-873.73915,0.000298,2]
[425118592,1781530250000,-873.73915,0.000298,2]
[425118591,1781530250000,-469.301051,0.000298,7]
[425118601,1781530250000,-301.136886,0.000298,7]
[425118600,1781530250000,-301.136886,0.000298,7]
[425118602,1781530250000,-151.0,0.000298,3]
[425118603,1781530250000,-151.0,0.000298,3]
[425118599,1781530250000,-301.136886,0.000298,7]
[425118542,1781530250000,-2110.0,0.00029637,2]
[425118575,1781530250000,-151.0,0.000298,7]
[425118580,1781530250000,-236.866385,0.000298,7]
[425118576,1781530250000,-369.825974,0.000298,7]
[425118570,1781530250000,-3050.37344203,0.000298,31]
[425118574,1781530250000,-500.0,0.000298,60]
[425118543,1781530250000,-8000.0,0.00029642,10]
[425118546,1781530250000,-150.0,0.00029652,30]
[425118549,1781530250000,-14656.0,0.00029781,2]
[425118551,1781530250000,-151.0,0.00029788,7]
[425118556,1781530250000,-469.301051,0.00029788,7]
[425118553,1781530250000,-469.301051,0.00029788,7]
[425118552,1781530250000,-151.0,0.00029788,7]
[425118554,1781530250000,-469.301051,0.00029788,7]
[425118550,1781530250000,-151.0,0.00029788,7]
[425118555,1781530250000,-469.301051,0.00029788,7]
[425118558,1781530250000,-1183.31712891,0.00029799,2]
[425118560,1781530250000,-150.0,0.00029799,2]
[425118544,1781530250000,-250.0,0.00029644,14]
[425118559,1781530250000,-219.02661485,0.00029799,2]
[425118568,1781530250000,-500.0,0.00029799,7]
[425118557,1781530250000,-247.65,0.00029795,2]
[425118567,1781530250000,-500.0,0.00029799,7]
[425118569,1781530250000,-500.0,0.00029799,7]
[425118564,1781530250000,-500.0,0.00029799,7]
[425118565,1781530250000,-500.0,0.00029799,7]
[425118545,1781530250000,-350.0,0.00029644,14]
[425118571,1781530250000,-1653268.03575104,0.000298,2]
[425118561,1781530250000,-500.0,0.00029799,120]
[425118566,1781530250000,-500.0,0.00029799,7]
[425118562,1781530250000,-160.17440971,0.00029799,2]
[425118563,1781530250000,-500.0,0.00029799,7]
[425118573,1781530250000,-153.8194,0.000298,2]
[425118635,1781530251000,-500.0,0.00029863,7]
[425118634,1781530251000,-500.0,0.00029863,7]
[425118636,1781530251000,-529.89444584,0.00029863,7]
[425118637,1781530251000,-500.0,0.00029863,7]
[425118640,1781530251000,-500.0,0.00029863,7]
[425118638,1781530251000,-500.0,0.00029863,7]
[425118639,1781530251000,-500.0,0.00029863,7]
[425118641,1781530251000,-500.0,0.00029863,7]
[425118643,1781530251000,-500.0,0.00029863,7]
[425118624,1781530251000,-175.93284705,0.00029846,7]
[425118642,1781530251000,-500.0,0.00029863,7]
[425118644,1781530251000,-500.0,0.00029863,7]
[425118647,1781530251000,-500.0,0.00029863,7]
[425118648,1781530251000,-500.0,0.00029863,7]
[425118649,1781530251000,-500.0,0.00029863,7]
[425118646,1781530251000,-500.0,0.00029863,7]
[425118650,1781530251000,-500.0,0.00029863,7]
[425118654,1781530251000,-500.0,0.00029863,7]
[425118652,1781530251000,-500.0,0.00029863,7]
[425118653,1781530251000,-500.0,0.00029863,7]
[425118655,1781530251000,-500.0,0.00029863,7]
[425118656,1781530251000,-254.77587518,0.00029863,7]
[425118632,1781530251000,-212.21923925,0.0002986,7]
[425118645,1781530251000,-500.0,0.00029863,7]
[425118651,1781530251000,-500.0,0.00029863,7]
[425118621,1781530251000,-250.15,0.00029842,2]
[425118633,1781530251000,-150.0,0.00029863,2]
[425118607,1781530251000,-152.0,0.000298,3]
[425118604,1781530251000,-152.0,0.000298,3]
[425118606,1781530251000,-152.0,0.000298,3]
[425118605,1781530251000,-152.0,0.000298,3]
[425118610,1781530251000,-152.0,0.000298,3]
[425118608,1781530251000,-152.0,0.000298,3]
[425118609,1781530251000,-152.0,0.000298,3]
[425118612,1781530251000,-152.0,0.000298,3]
[425118622,1781530251000,-325.174465,0.00029843,14]
[425118611,1781530251000,-152.0,0.000298,3]
[425118613,1781530251000,-152.0,0.000298,3]
[425118626,1781530251000,-186.68395752,0.00029846,7]
[425118617,1781530251000,-777.32,0.00029828,8]
[425118619,1781530251000,-151.0,0.00029842,2]
[425118616,1781530251000,-152.0,0.000298,3]
[425118614,1781530251000,-152.0,0.000298,3]
[425118615,1781530251000,-152.0,0.000298,3]
[425118620,1781530251000,-157.45,0.00029842,2]
[425118623,1781530251000,-151.04452938,0.00029846,7]
[425118630,1781530251000,-193.90585401,0.0002986,7]
[425118628,1781530251000,-201.31054925,0.0002986,7]
[425118627,1781530251000,-151.0,0.00029852,2]
[425118631,1781530251000,-251.86419011,0.0002986,7]
[425118625,1781530251000,-176.62291573,0.00029846,7]
[425118657,1781530251000,-9956.42,0.00029881,7]
[425118659,1781530251000,-518.47947542,0.00029889,2]
[425118618,1781530251000,-308.82,0.00029828,7]
[425118661,1781530251000,-221.07674386,0.00029895,7]
[425118693,1781530251000,-539.99801674,0.000299,2]
[425118691,1781530251000,-539.99801674,0.000299,2]
[425118690,1781530251000,-539.99801674,0.000299,2]
[425118697,1781530251000,-539.99801674,0.000299,2]
[425118694,1781530251000,-539.99801674,0.000299,2]
[425118695,1781530251000,-539.99801674,0.000299,2]
[425118699,1781530251000,-539.99801674,0.000299,2]
[425118692,1781530251000,-539.99801674,0.000299,2]
[425118696,1781530251000,-539.99801674,0.000299,2]
[425118698,1781530251000,-539.99801674,0.000299,2]
[425118700,1781530251000,-304.0452185,0.00029914,7]
[425118701,1781530251000,-172.75360003,0.00029921,7]
[425118704,1781530251000,-857.65922287,0.00029921,5]
[425118702,1781530251000,-684.86358537,0.00029921,7]
[425118703,1781530251000,-171.29654609,0.00029921,7]
[425118710,1781530251000,-152.0,0.0002994,6]
[425118706,1781530251000,-440.27894487,0.00029921,2]
[425118707,1781530251000,-389.7033202,0.00029921,2]
[425118705,1781530251000,-654.55399849,0.00029921,2]
[425118709,1781530251000,-157.22505773,0.00029921,7]
[425118708,1781530251000,-429.19832265,0.00029921,7]
[425118711,1781530251000,-1545.61,0.00029941,2]
[425118713,1781530251000,-154.17776049,0.00029951,7]
[425118712,1781530251000,-210.09571942,0.00029951,7]
[425118663,1781530251000,-206.31391762,0.00029895,7]
[425118685,1781530251000,-539.99801674,0.000299,2]
[425118689,1781530251000,-539.99801674,0.000299,2]
[425118629,1781530251000,-205.89094585,0.0002986,7]
[425118682,1781530251000,-539.99801674,0.000299,2]
[425118665,1781530251000,-211.82838949,0.00029895,7]
[425118686,1781530251000,-539.99801674,0.000299,2]
[425118660,1781530251000,-184.45124002,0.00029895,7]
[425118658,1781530251000,-532.72909741,0.00029889,7]
[425118662,1781530251000,-408.88705728,0.00029895,7]
[425118664,1781530251000,-221.50823603,0.00029895,7]
[425118678,1781530251000,-591.829384,0.000299,7]
[425118668,1781530251000,-604.89829751,0.00029897,7]
[425118671,1781530251000,-606.06228189,0.00029897,7]
[425118669,1781530251000,-305.37011706,0.00029897,7]
[425118667,1781530251000,-564.14854828,0.00029897,7]
[425118670,1781530251000,-318.16246193,0.00029897,7]
[425118666,1781530251000,-625.53029319,0.00029897,7]
[425118676,1781530251000,-10000.0,0.000299,60]
[425118673,1781530251000,-57208.99237744,0.000299,2]
[425118672,1781530251000,-500.0,0.00029899,7]
[425118675,1781530251000,-1062.71321389,0.000299,30]
[425118677,1781530251000,-1229.87,0.000299,7]
[425118680,1781530251000,-539.99801693,0.000299,2]
[425118679,1781530251000,-591.829384,0.000299,14]
[425118681,1781530251000,-539.99801674,0.000299,2]
[425118684,1781530251000,-539.99801674,0.000299,2]
[425118683,1781530251000,-539.99801674,0.000299,2]
[425118688,1781530251000,-539.99801674,0.000299,2]
[425118674,1781530251000,-76848.10149278,0.000299,2]